{"text_format":"3","workbook":"xlsx","n_sheets":1,"sheets":["За објаву"],"read":"whole","date_system":"1900"}

{"sheet":"За објаву","index":0,"n_rows":57,"n_cols":11,"rows_kept":57,"merged":[[1,0,2,10],[5,0,5,10],[8,0,8,10],[31,0,31,10],[44,0,44,10],[50,0,50,10],[51,1,51,6],[52,1,52,6],[53,1,53,6],[54,1,54,6],[55,1,55,6],[56,1,56,6]]}
[]
["ОБРАЗАЦ СТРУКТУРЕ ПОНУЂЕНЕ ЦЕНЕ"]
[]
[]
["Рбр","Опис","ЈМ.","Кол.","Јединична цена","Укупна цена без ПДВ-а","ПДВ стопа","Укупна цена са ПДВ-ом","Произвођач и држава порекла","Модел / Тип","Техничка документација која се доставља уз понуду"]
["ПРОЈЕКТОВАЊЕ И РАДОВИ"]
[1,"Израда пројектне документације\n\nСпецификација у документу:\n\"ТЕХНИЧКЕ СПЕЦИФИКАЦИЈЕ\"","компл.",1,null,{"$f":"E7*D7","v":{"v":0,"d":"0.00"}},null,{"$f":"G7*F7+F7","v":{"v":0,"d":"0.00"}}]
[2,"Извођење радова\n\nСпецификација у документу:\n\"ТЕХНИЧКЕ СПЕЦИФИКАЦИЈЕ\"","kомпл.",1,null,{"$f":"E8*D8","v":{"v":0,"d":"0.00"}},null,{"$f":"G8*F8+F8","v":{"v":0,"d":"0.00"}}]
["ОПРЕМА НА НИВОУ НАПЛАТНИХ КАБИНА/ТРАКА"]
[1,"Уређај за аутоматску категоризацију возила\n\nТехнички детаљи у документу:\n\"ТЕХНИЧКЕ СПЕЦИФИКАЦИЈЕ\"\n\nПоглавље: 4.1.15.","сет",104,null,{"$f":"E10*D10","v":{"v":0,"d":"0.00"}},null,{"$f":"G10*F10+F10","v":{"v":0,"d":"0.00"}},null,null,"Брошура и техничка спецификација произвођача\n"]
[2,"Уређај за аутоматску сепарацију возила\n\nТехнички детаљи у документу:\n\"ТЕХНИЧКЕ СПЕЦИФИКАЦИЈЕ\"\n\nПоглавље: 4.1.16.","сет",83,null,{"$f":"E11*D11","v":{"v":0,"d":"0.00"}},null,{"$f":"G11*F11+F11","v":{"v":0,"d":"0.00"}},null,null,"Брошура и техничка спецификација произвођача\n"]
[3,"Подсистем за препознавање регистарског броја возила\n\nТехнички детаљи у документу:\n\"ТЕХНИЧКЕ СПЕЦИФИКАЦИЈЕ\"\n\nПоглавље: 4.1.12.","ком",104,null,{"v":0,"d":"0.00"},null,{"v":0,"d":"0.00"},null,null,"Брошура и техничка спецификација произвођача\n"]
[4,"Подсистем видео надзора за контролу процеса наплате путарине - Спољашња камера\n\nТехнички детаљи у документу:\n\"ТЕХНИЧКЕ СПЕЦИФИКАЦИЈЕ\"\n\nПоглавље: 4.3.1.1.","ком",208,null,{"v":0,"d":"0.00"},null,{"v":0,"d":"0.00"},null,null,"Брошура и техничка спецификација произвођача\n\nПотврда произвођача о петогодишњој гаранцији"]
[5,"Подсистем за електронску наплату путарине - ЕНП антена са каблом и држачем\n\nТехнички детаљи у документу:\n\"ТЕХНИЧКЕ СПЕЦИФИКАЦИЈЕ\"\n\nПоглавље: 4.1.13.","сет",83,null,{"v":0,"d":"0.00"},null,{"v":0,"d":"0.00"},null,null,"Брошура и техничка спецификација произвођача\n\n"]
[6,"Подсистем за електронску наплату путарине - стони ЕНП уређај\n\nТехнички детаљи у документу:\n\"ТЕХНИЧКЕ СПЕЦИФИКАЦИЈЕ\"\n\nПоглавље: 4.1.13.","ком",53,null,{"v":0,"d":"0.00"},null,{"v":0,"d":"0.00"},null,null,"Брошура и техничка спецификација произвођача\n"]
[7,"Рачунар - контролер наплатне траке са тастатуром и екраном\n\nТехнички детаљи у документу:\n\"ВРСТА И ОПИС РАДОВА, ТЕХНИЧКЕ СПЕЦИФИКАЦИЈЕ\nИ ТЕХНИЧКИ УСЛОВИ\"\n\nПоглавље: 4.1.2. и 4.1.3.","сет",104,null,{"v":0,"d":"0.00"},null,{"v":0,"d":"0.00"},null,null,"Брошура и техничка спецификација произвођача\n"]
[8,"Улазно излазни контролер\n\nТехнички детаљи у документу:\n\"ВРСТА И ОПИС РАДОВА, ТЕХНИЧКЕ СПЕЦИФИКАЦИЈЕ\nИ ТЕХНИЧКИ УСЛОВИ\"\n\nПоглавље: 4.1.4.","ком",104,null,{"v":0,"d":"0.00"},null,{"v":0,"d":"0.00"},null,null,"Брошура и техничка спецификација произвођача\n"]
[9,"Индуктивни детектор\n\nТехнички детаљи у документу:\n\"ВРСТА И ОПИС РАДОВА, ТЕХНИЧКЕ СПЕЦИФИКАЦИЈЕ\nИ ТЕХНИЧКИ УСЛОВИ\"\n\nПоглавље: 4.1.5.","ком",208,null,{"v":0,"d":"0.00"},null,{"v":0,"d":"0.00"},null,null,"Брошура и техничка спецификација произвођача\n"]
[10,"Дистрибутер магнетних картица\n\nТехнички детаљи у документу:\n\"ТЕХНИЧКЕ СПЕЦИФИКАЦИЈЕ\"\n\nПоглавље: 4.1.7.","ком",76,null,{"v":0,"d":"0.00"},null,{"v":0,"d":"0.00"},null,null,"Брошура и техничка спецификација произвођача\n"]
[11,"IP интерфон\n\nТехнички детаљи у документу:\n\"ТЕХНИЧКЕ СПЕЦИФИКАЦИЈЕ\"\n\nПоглавље: 4.1.8.","ком",186,null,{"v":0,"d":"0.00"},null,{"v":0,"d":"0.00"},null,null,"Брошура и техничка спецификација произвођача\n\nПотврда произвођача о петогодишњој гаранцији"]
[12,"Читач магнетних картица\n\nТехнички детаљи у документу:\n\"ТЕХНИЧКЕ СПЕЦИФИКАЦИЈЕ\"\n\nПоглавље: 4.1.17.","ком",36,null,{"v":0,"d":"0.00"},null,{"v":0,"d":"0.00"},null,null,"Брошура и техничка спецификација произвођача\n\n"]
[13,"Штампач признаница\n\nТехнички детаљи у документу:\n\"ТЕХНИЧКЕ СПЕЦИФИКАЦИЈЕ\"\n\nПоглавље: 4.1.18.","ком",36,null,{"v":0,"d":"0.00"},null,{"v":0,"d":"0.00"},null,null,"Брошура и техничка спецификација произвођача\n"]
[14,"Алармни паник тастер\n\nТехнички детаљи у документу:\n\"ТЕХНИЧКЕ СПЕЦИФИКАЦИЈЕ\"\n\nПоглавље: 4.3.2.","ком",76,null,{"v":0,"d":"0.00"},null,{"v":0,"d":"0.00"},null,null,"Брошура и техничка спецификација произвођача\n\nПотврда произвођача о петогодишњој гаранцији"]
[15,"Алармни сензор покрета\n\nТехнички детаљи у документу:\n\"ТЕХНИЧКЕ СПЕЦИФИКАЦИЈЕ\"\n\nПоглавље: 4.3.2.","ком",76,null,{"v":0,"d":"0.00"},null,{"v":0,"d":"0.00"},null,null,"Брошура и техничка спецификација произвођача\n\nПотврда произвођача о петогодишњој гаранцији"]
[16,"Подсистем видео надзора за контролу процеса наплате путарине - Унутрашња камера\n\nТехнички детаљи у документу:\n\"ТЕХНИЧКЕ СПЕЦИФИКАЦИЈЕ\"\n\nПоглавље: 4.3.1.2.","ком",76,null,{"v":0,"d":"0.00"},null,{"v":0,"d":"0.00"},null,null,"Брошура и техничка спецификација произвођача\n\nПотврда произвођача о петогодишњој гаранцији"]
[17,"Читач бар код картица\n\nТехнички детаљи у документу:\n\"ТЕХНИЧКЕ СПЕЦИФИКАЦИЈЕ\"\n\nПоглавље: 4.1.14.","ком",36,null,{"v":0,"d":"0.00"},null,{"v":0,"d":"0.00"},null,null,"Брошура и техничка спецификација произвођача\n\n"]
[18,"Електромеханичка рампа\n\nТехнички детаљи у документу:\n\"ТЕХНИЧКЕ СПЕЦИФИКАЦИЈЕ\"\n\nПоглавље: 4.1.11.","ком",104,null,{"v":0,"d":"0.00"},null,{"v":0,"d":"0.00"},null,null,"Брошура и техничка спецификација произвођача; Потврда произвођача да је понуђач овлашћен за испоруку и уградњу понуђених уређаја на територији Републике Србије.\n\nПотврда произвођача о петогодишњој гаранцији"]
[19,"Информациони (кориснички) дисплеј\n\nТехнички детаљи у документу:\n\"ТЕХНИЧКЕ СПЕЦИФИКАЦИЈЕ\"\n\nПоглавље: 4.1.10.","ком",104,null,{"v":0,"d":"0.00"},null,{"v":0,"d":"0.00"},null,null,"Брошура и техничка спецификација произвођача\n"]
[20,"Променљива саобраћајна сигнализација на надстрешници - знак намене траке\n\nТехнички детаљи у документу:\n\"ТЕХНИЧКЕ СПЕЦИФИКАЦИЈЕ\"\n\nПоглавље: 4.1.9.","ком",104,null,{"v":0,"d":"0.00"},null,{"v":0,"d":"0.00"},null,null,"Брошура и техничка спецификација произвођача\n"]
[21,"Променљива саобраћајна сигнализација на надстрешници - знак \"X\"  на надстрешници\n\nТехнички детаљи у документу:\n\"ТЕХНИЧКЕ СПЕЦИФИКАЦИЈЕ\"\n\nПоглавље: 4.1.9.","ком",70,null,{"v":0,"d":"0.00"},null,{"v":0,"d":"0.00"},null,null,"Брошура и техничка спецификација произвођача\n\n"]
[22,"Софтверски пакет на нивоу траке са оперативним системом и свим потребним лиценцама\n\nТехнички детаљи у документу:\n\"ТЕХНИЧКЕ СПЕЦИФИКАЦИЈЕ\"\n\nПоглавље: 4.1.19.","лиценца",104,null,{"v":0,"d":"0.00"},null,{"v":0,"d":"0.00"},null,null,"Брошура и функционални опис произвођача"]
["ОПРЕМА НА НИВОУ УПРАВНЕ ЗГРАДЕ НА НАПЛАТНИМ СТАНИЦАМА"]
[23,"Централни UPS наплатне станице\n\nТехнички детаљи у документу:\n\"ТЕХНИЧКЕ СПЕЦИФИКАЦИЈЕ\"\n\nПоглавље: 4.2.4.","сет",12,null,{"v":0,"d":"0.00"},null,{"v":0,"d":"0.00"},null,null,"Брошура и техничка спецификација произвођача\n\nПотврда произвођача о петогодишњој гаранцији"]
[24,"Сервер система за наплату путарине на нивоу наплатне станице\n\nТехнички детаљи у документу:\n\"ТЕХНИЧКЕ СПЕЦИФИКАЦИЈЕ\"\n\nПоглавље: 4.2.1.","сет",12,null,{"v":0,"d":"0.00"},null,{"v":0,"d":"0.00"},null,null,"Брошура и техничка спецификација произвођача\n\nПотврда произвођача о петогодишњој гаранцији"]
[25,"Радна станица система за наплату путарине на нивоу наплатне станице\n\nТехнички детаљи у документу:\n\"ТЕХНИЧКЕ СПЕЦИФИКАЦИЈЕ\"\n\nПоглавље: 4.2.2.","сет",36,null,{"v":0,"d":"0.00"},null,{"v":0,"d":"0.00"},null,null,"Брошура и техничка спецификација произвођача\n\nПотврда произвођача о петогодишњој гаранцији"]
[26,"Мрежни ласерски штампач\n\nТехнички детаљи у документу:\n\"ТЕХНИЧКЕ СПЕЦИФИКАЦИЈЕ\"\n\nПоглавље: 4.2.3.","ком",24,null,{"v":0,"d":"0.00"},null,{"v":0,"d":"0.00"},null,null,"Брошура и техничка спецификација произвођача\n\nПотврда произвођача о петогодишњој гаранцији"]
[27,"Софтверски пакет система за наплату путарине са свим потребним лиценцама на нивоу наплатне станице\n\nТехнички детаљи у документу:\n\"ТЕХНИЧКЕ СПЕЦИФИКАЦИЈЕ\"\n\nПоглавље: 4.2.5.","лиценца",12,null,{"v":0,"d":"0.00"},null,{"v":0,"d":"0.00"},null,null,"Брошура и функционални опис произвођача"]
[28,"Мрежни видео снимач (NVR) уређај за систем интегрисаног видео надзора процеса наплате путарине\n\nТехнички детаљи у документу:\n\"ТЕХНИЧКЕ СПЕЦИФИКАЦИЈЕ\"\n\nПоглавље: 4.3.1.4 и 4.3.1.5. и 4.3.1.6.","ком",12,null,{"v":0,"d":"0.00"},null,{"v":0,"d":"0.00"},null,null,"Брошура и техничка спецификација произвођача\n\nПотврда произвођача о петогодишњој гаранцији"]
[29,"Мониторинг станица са једним монитором за систем интегрисаног видео надзора процеса наплате путарине на нивоу наплатне станице\n\nТехнички детаљи у документу:\n\"ТЕХНИЧКЕ СПЕЦИФИКАЦИЈЕ\"\n\nПоглавље: 4.3.1.7.","сет",12,null,{"v":0,"d":"0.00"},null,{"v":0,"d":"0.00"},null,null,"Брошура и техничка спецификација произвођача\n\nПотврда произвођача о петогодишњој гаранцији"]
[30,"Софтверски пакет за систем интегрисаног видео надзора процеса наплате путарине са свим потребним лиценцама\n\nТехнички детаљи у документу:\n\"ТЕХНИЧКЕ СПЕЦИФИКАЦИЈЕ\"\n\nПоглавље: 4.3.1.","лиценца",12,null,{"v":0,"d":"0.00"},null,{"v":0,"d":"0.00"},null,null,"Брошура и функционални опис произвођача"]
[31,"Алармни систем за обезбеђење радника и имовине са свим потребним лиценцама за интеграцију у систем интегрисаног видео надзора процеса наплате путарине и приступ „Cloud“ серверу\n\nТехнички детаљи у документу:\n\"ТЕХНИЧКЕ СПЕЦИФИКАЦИЈЕ\"\n\nПоглавље: 4.3.2.","сет",12,null,{"v":0,"d":"0.00"},null,{"v":0,"d":"0.00"},null,null,"Брошура и техничка спецификација произвођача\n\nПотврда произвођача о петогодишњој гаранцији"]
[32,"Пуњачи за електрична возила јачине од најмање 120kW","сет",8,null,{"$f":"E42*D42","v":{"v":0,"d":"0.00"}},null,{"$f":"G42*F42+F42","v":{"v":0,"d":"0.00"}},null,null,"Брошура и техничка спецификација произвођача; Потврда произвођача да је понуђач овлашћен за продају понуђених уређаја на територији Републике Србије.\n\n"]
[33,"Соларне електране јачине 40KW","сет",3,null,{"$f":"E43*D43","v":{"v":0,"d":"0.00"}},null,{"$f":"G43*F43+F43","v":{"v":0,"d":"0.00"}},null,null,"Брошура и техничка спецификација произвођача\n\n"]
[34,"Соларне електране јачине 50KW","сет",8,null,{"v":0,"d":"0.00"},null,{"v":0,"d":"0.00"},null,null,"Брошура и техничка спецификација произвођача; "]
["ОПРЕМА НА ЦЕНТРАЛНОЈ НАДЗОРНОЈ ЛОКАЦИЈИ"]
[32,"Менаџмент сервер за систем интегрисаног видео надзора процеса наплате путарине\n\nТехнички детаљи у документу:\n\"ТЕХНИЧКЕ СПЕЦИФИКАЦИЈЕ\"\n\nПоглавље: 4.3.1.9.","сет",1,null,{"v":0,"d":"0.00"},null,{"v":0,"d":"0.00"},null,null,"Брошура и техничка спецификација произвођача\n\nПотврда произвођача о петогодишњој гаранцији"]
[33,"Рекординг сервер за систем интегрисаног видео надзора процеса наплате путарине\n\nТехнички детаљи у документу:\n\"ТЕХНИЧКЕ СПЕЦИФИКАЦИЈЕ\"\n\nПоглавље: 4.3.1.10.","сет",1,null,{"v":0,"d":"0.00"},null,{"v":0,"d":"0.00"},null,null,"Брошура и техничка спецификација произвођача\n\nПотврда произвођача о петогодишњој гаранцији"]
[34,"Контролер видео зида за систем интегрисаног видео надзора процеса наплате путарине\n\nТехнички детаљи у документу:\n\"ТЕХНИЧКЕ СПЕЦИФИКАЦИЈЕ\"\n\nПоглавље: 4.3.1.11.","сет",1,null,{"v":0,"d":"0.00"},null,{"v":0,"d":"0.00"},null,null,"Брошура и техничка спецификација произвођача\n\nПотврда произвођача о петогодишњој гаранцији"]
[35,"Мониторинг станица са три монитора за систем интегрисаног видео надзора процеса наплате путарине на централном нивоу\n\nТехнички детаљи у документу:\n\"ТЕХНИЧКЕ СПЕЦИФИКАЦИЈЕ\"\n\nПоглавље: 4.3.1.8.","сет",1,null,{"v":0,"d":"0.00"},null,{"v":0,"d":"0.00"},null,null,"Брошура и техничка спецификација произвођача\n\nПотврда произвођача о петогодишњој гаранцији"]
[36,"Централни софтверски пакет за систем интегрисаног видео надзора процеса наплате путарине са свим потребним лиценцама\n\nТехнички детаљи у документу:\n\"ТЕХНИЧКЕ СПЕЦИФИКАЦИЈЕ\"\n\nПоглавље: 4.3.1.","лиценца",1,null,{"v":0,"d":"0.00"},null,{"v":0,"d":"0.00"},null,null,"Брошура и функционални опис произвођача"]
["РЕКАПИТУЛАЦИЈА"]
[null,"ПРОЈЕКТОВАЊЕ И РАДОВИ",{"$nulls":5},{"$f":"H7+H8","v":{"v":0,"d":"0.00"}}]
[null,"ОПРЕМА НА НИВОУ НАПЛАТНИХ КАБИНА/ТРАКА",{"$nulls":5},{"$f":"SUM(H10:H31)","v":{"v":0,"d":"0.00"}}]
[null,"ОПРЕМА НА НИВОУ УПРАВНЕ ЗГРАДЕ НА НАПЛАТНИМ СТАНИЦАМА",{"$nulls":5},{"$f":"SUM(H33:H41)","v":{"v":0,"d":"0.00"}}]
[null,"ОПРЕМА НА ЦЕНТРАЛНОЈ НАДЗОРНОЈ ЛОКАЦИЈИ",{"$nulls":5},{"$f":"SUM(H46:H50)","v":{"v":0,"d":"0.00"}}]
[null,"УКУПНО",{"$nulls":5},{"$f":"SUM(H52:H55)","v":{"v":0,"d":"0.00"}}]
[null,"УКУПНО (са ПДВ-ом)",{"$nulls":5},{"$f":"SUM(H53:H56)","v":{"v":0,"d":"0.00"}}]